fUST/lending_fUST_20250719
["ID","MTS","AMOUNT","RATE_DAILY","PERIOD"]
[373145327,1752882654863,-811.43,0.00018904,2]
[373145328,1752882654872,-2021.39,0.00018904,2]
[373145330,1752882654882,-460.0,0.00018904,2]
[373145332,1752882654892,-460.0,0.00018904,2]
[373145334,1752882654901,-922.94,0.00018904,2]
[373145336,1752882654910,-460.0,0.00018904,2]
[373145338,1752882654919,-881.82,0.00018904,2]
[373145339,1752882654929,-460.0,0.00018904,2]
[373145341,1752882654940,-460.0,0.00018904,2]
[373145343,1752882654950,-460.0,0.00018904,2]
[373145345,1752882654960,-460.0,0.00018904,2]
[373145347,1752882654971,-1220.93,0.00018904,2]
[373145349,1752882654980,-500.0,0.00018925,2]
[373145351,1752882654990,-500.0,0.00018925,2]
[373145352,1752882655000,-500.0,0.00018925,2]
[373145354,1752882655011,-500.0,0.00018925,2]
[373145356,1752882655024,-500.0,0.0001898,2]
[373145358,1752882655033,-500.0,0.0001898,2]
[373145360,1752882655042,-500.0,0.00019007,2]
[373145362,1752882655051,-500.0,0.00019007,2]
[373145364,1752882655061,-500.0,0.00019033,2]
[373145365,1752882655070,-501.24439399,0.00019033,2]
[373145367,1752882655079,-300.07284221,0.00019033,2]
[373145369,1752882655089,-500.0,0.00019033,2]
[373145371,1752882655098,-500.0,0.00019033,2]
[373145373,1752882655107,-500.0,0.00019033,2]
[373145374,1752882655117,-500.0,0.00019033,2]
[373145376,1752882655126,-500.0,0.00019033,2]
[373145378,1752882655135,-500.0,0.00019033,2]
[373145380,1752882655144,-500.0,0.00019033,2]
[373145381,1752882655154,-500.0,0.00019033,2]
[373145383,1752882655163,-196.28782173,0.00019033,2]
[373145385,1752882655173,-500.0,0.00019033,2]
[373145387,1752882655182,-500.0,0.00019033,2]
[373145389,1752882655191,-500.56256793,0.00019033,2]
[373145390,1752882655201,-500.0,0.00019033,2]
[373145392,1752882655212,-500.0,0.00019033,2]
[373145394,1752882655222,-1543.04348695,0.00019072,2]
[373145396,1752882655232,-460.0,0.00019178,2]
[373145398,1752882655243,-460.0,0.00019178,2]
[373145399,1752882655252,-460.0,0.00019178,2]
[373145401,1752882655261,-1992.28,0.00019178,2]
[373145403,1752882655271,-1683.74,0.00019178,2]
[373145405,1752882655280,-460.0,0.00019178,2]
[373145407,1752882655290,-467.7,0.00019178,2]
[373145409,1752882655300,-1516.74,0.00019178,2]
[373145411,1752882655311,-460.0,0.00019178,2]
[373145412,1752882655321,-2285.8,0.00019178,2]
[373145414,1752882655330,-460.0,0.00019178,2]
[373145416,1752882655339,-1073.2,0.00019178,2]
[373145418,1752882655348,-460.0,0.00019178,2]
[373145420,1752882655357,-1347.03,0.00019178,2]
[373145422,1752882655366,-1083.59,0.00019178,2]
[373145423,1752882655376,-460.0,0.00019178,2]
[373145425,1752882655386,-811.43,0.00019178,2]
[373145427,1752882655395,-2021.39,0.00019178,2]
[373145429,1752882655404,-460.0,0.00019178,2]
[373145431,1752882655414,-460.0,0.00019178,2]
[373145433,1752882655423,-922.94,0.00019178,2]
[373145434,1752882655432,-460.0,0.00019178,2]
[373145436,1752882655441,-881.82,0.00019178,2]
[373145438,1752882655451,-460.0,0.00019178,2]
[373145440,1752882655460,-460.0,0.00019178,2]
[373145442,1752882655471,-1220.93,0.00019178,2]
[373145443,1752882655480,-213.524948,0.00019178,2]
[373145445,1752882655489,-600.0,0.00019186,2]
[373145447,1752882655499,-500.0,0.00019194,2]
[373145449,1752882655508,-512.87292666,0.00019194,2]
[373145451,1752882655518,-151.0,0.00019292,2]
[373145452,1752882655527,-500.0,0.00019292,2]
[373145454,1752882655536,-500.0,0.00019292,2]
[373145456,1752882655546,-501.10163726,0.00019292,2]
[373145458,1752882655555,-500.0,0.00019292,2]
[373145460,1752882655565,-500.0,0.00019292,2]
[373145462,1752882655576,-500.0,0.00019292,2]
[373145463,1752882655588,-500.0,0.00019292,2]
[373145465,1752882655597,-500.0,0.00019292,2]
[373145467,1752882655607,-649.33029853,0.0001931,2]
[373145469,1752882655620,-350.66970147,0.0001931,2]
[373145471,1752882655630,-370.23029843,0.0001931,2]
[373145505,1752882656013,-460.0,0.00016438,2]
[373145506,1752882656023,-460.0,0.00016438,2]
[373145508,1752882656033,-460.0,0.00016438,2]
[373145510,1752882656043,-460.0,0.00016712,2]
[373145512,1752882656052,-460.0,0.00016712,2]
[373145514,1752882656062,-460.0,0.00016986,2]
[373145516,1752882656072,-129.76970157,0.0001931,2]
[373145517,1752882656082,-500.0,0.0001931,2]
[373145519,1752882656091,-501.81749173,0.0001931,2]
[373145521,1752882656100,-1000.0,0.0001931,2]
[373145523,1752882656111,-500.0,0.0001931,2]
[373145525,1752882656120,-500.0,0.0001931,2]
[373145527,1752882656129,-186.41137148,0.0001931,2]
[373145528,1752882656139,-500.0,0.0001931,2]
[373145530,1752882656148,-500.0,0.0001931,2]
[373145532,1752882656158,-385.05416638,0.0001931,2]
[373145534,1752882656167,-1543.04348695,0.00019383,2]
[373145536,1752882656177,-5637.0,0.00019431,2]
[373145538,1752882656187,-460.0,0.00019444,2]
[373145539,1752882656196,-460.0,0.00019452,2]
[373145541,1752882656206,-460.0,0.00019452,2]
[373145543,1752882656216,-1992.28,0.00019452,2]
[373145545,1752882656225,-1683.74,0.00019452,2]
[373145546,1752882656239,-460.0,0.00019452,2]
[373145548,1752882656248,-467.7,0.00019452,2]
[373145550,1752882656258,-1516.74,0.00019452,2]
[373145552,1752882656267,-460.0,0.00019452,2]
[373145554,1752882656278,-2285.8,0.00019452,2]
[373145556,1752882656287,-460.0,0.00019452,2]
[373145557,1752882656296,-1073.2,0.00019452,2]
[373145559,1752882656307,-460.0,0.00019452,2]
[373145561,1752882656317,-1347.03,0.00019452,2]
[373145563,1752882656327,-1083.59,0.00019452,2]
[373145565,1752882656337,-460.0,0.00019452,2]
[373145567,1752882656347,-811.43,0.00019452,2]
[373145568,1752882656356,-460.0,0.00019452,2]
[373145570,1752882656365,-460.0,0.00019452,2]
[373145572,1752882656375,-922.94,0.00019452,2]
[373145574,1752882656385,-460.0,0.00019452,2]
[373145576,1752882656394,-881.82,0.00019452,2]
[373145577,1752882656405,-460.0,0.00019452,2]
[373145579,1752882656414,-460.0,0.00019452,2]
[373145581,1752882656424,-1220.93,0.00019452,2]
[373145583,1752882656433,-500.0,0.00019473,2]
[373145585,1752882656443,-500.0,0.00019473,2]
[373145586,1752882656453,-647.0,0.00019492,2]
[373145588,1752882656463,-2156.0,0.00019492,2]
[373145590,1752882656472,-407.0,0.00019492,2]
[373145592,1752882656482,-968.0,0.00019492,2]
[373145594,1752882656492,-150.0,0.00019492,2]
[373145596,1752882656503,-203.312,0.00019492,2]
[373145598,1752882656512,-175.61,0.00019492,2]
[373145599,1752882656522,-1063.3007581,0.00019528,2]
[373145601,1752882656532,-1000.0,0.00019528,2]
[373145603,1752882656541,-151.0,0.00019581,2]
[373145605,1752882656551,-151.0,0.00019581,2]
[373145607,1752882656561,-1000.0,0.00019581,2]
[373145609,1752882656571,-500.0,0.00019581,2]
[373145611,1752882656581,-1000.0,0.00019581,2]
[373145612,1752882656590,-1000.0,0.00019581,2]
[373145614,1752882656600,-1000.0,0.00019581,2]
[373145616,1752882656609,-434.8876236,0.00019581,2]
[373145618,1752882656618,-1000.0,0.00019581,2]
[373145620,1752882656627,-500.0,0.00019581,2]
[373145621,1752882656637,-615.265,0.00019603,2]
[373145623,1752882656646,-1974.0,0.00019619,2]
[373145625,1752882656656,-587.0,0.00019619,2]
[373145627,1752882656666,-223.0315306,0.00019676,2]
[373145629,1752882656675,-5637.0,0.00019689,2]
[373145631,1752882656685,-1543.04348695,0.00019693,2]
[373145632,1752882656694,-460.0,0.00019726,2]
[373145634,1752882656704,-460.0,0.00019726,2]
[373145636,1752882656714,-1992.28,0.00019726,2]
[373145638,1752882656723,-1683.74,0.00019726,2]
[373145640,1752882656733,-460.0,0.00019726,2]
[373145641,1752882656743,-467.7,0.00019726,2]
[373145643,1752882656752,-1516.74,0.00019726,2]
[373145645,1752882656761,-460.0,0.00019726,2]
[373145647,1752882656770,-1256.87153683,0.00019726,2]
[373145649,1752882656789,-460.0,0.00016438,2]
[373145651,1752882656799,-1028.92846317,0.00019726,2]
[373145653,1752882656809,-460.0,0.00019726,2]
[373145655,1752882656818,-1073.2,0.00019726,2]
[373145657,1752882656828,-460.0,0.00019726,2]
[373145659,1752882656838,-1347.03,0.00019726,2]
[373145660,1752882656847,-1083.59,0.00019726,2]
[373145662,1752882656858,-460.0,0.00019726,2]
[373145664,1752882656867,-811.43,0.00019726,2]
[373145666,1752882656876,-460.0,0.00019726,2]
[373145668,1752882656885,-460.0,0.00019726,2]
[373145670,1752882656895,-922.94,0.00019726,2]
[373145672,1752882656905,-460.0,0.00019726,2]
[373145674,1752882656915,-881.82,0.00019726,2]
[373145676,1752882656925,-460.0,0.00019726,2]
[373145678,1752882656936,-460.0,0.00019726,2]
[373145680,1752882656946,-1220.93,0.00019726,2]
[373145682,1752882656956,-500.0,0.0001973,2]
[373145684,1752882656966,-186.189278,0.00019733,2]
[373145686,1752882656976,-5051.81716401,0.00019798,2]
[373145688,1752882656988,-585.18283599,0.00019798,2]
[373145690,1752882656998,-642.0,0.000198,2]
[373145692,1752882657008,-151.0,0.00019831,2]
[373145694,1752882657018,-151.0,0.00019831,2]
[373145696,1752882657028,-151.0,0.00019831,2]
[373145698,1752882657038,-495.04178844,0.0001984,2]
[373145700,1752882657047,-1001.08804839,0.0001984,2]
[373145702,1752882657057,-1000.0,0.0001984,2]
[373145704,1752882657066,-1002.95359699,0.0001984,2]
[373145706,1752882657075,-820.72913419,0.0001984,2]
[373145708,1752882657087,-179.27086581,0.0001984,2]
[373145710,1752882657097,-602.31733062,0.0001984,2]
[373145712,1752882657106,-526.26988473,0.0001984,2]
[373145714,1752882657115,-1500.0,0.00019858,2]
[373145716,1752882657124,-1170.148198,0.00019867,2]
[373145717,1752882657134,-151.0,0.000199,2]
[373145718,1752882657143,-151.0,0.00019944,2]
[373145719,1752882657153,-151.0,0.00019944,2]
[373145720,1752882657162,-151.0,0.00019944,2]
[373145721,1752882657171,-159.417184,0.00019944,2]
[373145722,1752882657180,-159.417184,0.00019944,2]
[373145723,1752882657190,-168.0,0.00019947,2]
[373145724,1752882657199,-560.0,0.00019992,2]
[373145725,1752882657209,-105.3595252,0.00019992,2]
[373146364,1752882885757,457.442404,0.00013699,2]
[373146365,1752883022655,5605.82202624,0.00015989,2]
[373146366,1752883022690,10000.0,0.00015989,2]
[373146367,1752883022724,9294.17797376,0.00015989,2]
[373146368,1752883145361,705.82202624,0.00016,2]
[373146369,1752883145405,9343.93873877,0.00016,2]
[373146370,1752883167840,656.06126123,0.00016338,2]
[373146371,1752883167869,90.06497767,0.00016338,2]
[373146372,1752883428695,652.86045909,0.00016338,2]
[373146374,1752883626484,-253.62,0.00016428,3]
[373146375,1752883626511,-760.87,0.00016428,3]
[373146376,1752883626534,-1200.0,0.00016437,2]
[373146377,1752883626557,-1200.0,0.00016437,2]
[373146378,1752883626582,-300.0,0.00016437,2]
[373146379,1752883626603,-460.0,0.00016438,2]
[373146380,1752883626624,-142.69692216,0.00016438,2]
[373146381,1752883693153,150.0,0.00014662,2]
[373146387,1752883808827,571.25290166,0.00016337,2]
[373146388,1752883820916,150.0,0.00014627,2]
[373146430,1752883832270,-500.0,0.00016428,2]
[373146431,1752883832281,-500.0,0.00016428,2]
[373146432,1752883832291,-500.0,0.00016428,2]
[373146433,1752883832300,-500.0,0.00016428,2]
[373146434,1752883832311,-500.0,0.00016428,2]
[373146435,1752883832321,-521.32392601,0.00016428,2]
[373146436,1752883832333,-151.16351466,0.00016428,2]
[373146437,1752883832344,-300.0,0.00016436,2]
[373146438,1752883832354,-500.0,0.00016437,2]
[373146439,1752883832364,-500.0,0.00016437,2]
[373146440,1752883832374,-500.0,0.00016437,2]
[373146441,1752883832384,-500.0,0.00016437,2]
[373146442,1752883832394,-500.0,0.00016437,2]
[373146443,1752883832404,-500.0,0.00016437,2]
[373146444,1752883832414,-500.0,0.00016437,2]
[373146445,1752883832424,-500.0,0.00016437,2]
[373146446,1752883832434,-500.0,0.00016437,2]
[373146447,1752883832444,-500.0,0.00016437,2]
[373146448,1752883832454,-500.0,0.00016437,2]
[373146449,1752883832464,-500.0,0.00016437,2]
[373146450,1752883832474,-500.0,0.00016437,2]
[373146451,1752883832484,-212.82379775,0.00016437,2]
[373146452,1752883832494,-500.0,0.00016437,2]
[373146453,1752883832505,-500.0,0.00016437,2]
[373146454,1752883832515,-500.0,0.00016437,2]
[373146455,1752883832524,-500.0,0.00016437,2]
[373146456,1752883832534,-500.0,0.00016437,2]
[373146457,1752883832544,-500.0,0.00016437,2]
[373146458,1752883832553,-500.0,0.00016437,2]
[373146459,1752883832565,-500.0,0.00016437,2]
[373146460,1752883832576,-500.0,0.00016437,2]
[373146461,1752883832586,-500.0,0.00016437,2]
[373146462,1752883832596,-500.0,0.00016437,2]
[373146463,1752883832607,-500.0,0.00016437,2]
[373146464,1752883832617,-500.0,0.00016437,2]
[373146465,1752883832628,-469.06892534,0.00016437,2]
[373146466,1752883832643,-500.0,0.00016437,2]
[373146467,1752883832654,-500.0,0.00016437,2]
[373146468,1752883832664,-486.16108743,0.00016437,2]
[373146469,1752883832674,-500.0,0.00016437,2]
[373146470,1752883832684,-500.0,0.00016437,2]
[373146471,1752883832693,-500.0,0.00016437,2]
[373146472,1752883832703,-500.0,0.00016437,2]
[373146473,1752883832712,-500.0,0.00016437,2]
[373146474,1752883832721,-500.0,0.00016437,2]
[373146475,1752883832731,-500.0,0.00016437,2]
[373146476,1752883832741,-500.0,0.00016437,2]
[373146477,1752883832751,-500.0,0.00016437,2]
[373146478,1752883832760,-500.0,0.00016437,2]
[373146479,1752883832770,-500.0,0.00016437,2]
[373146480,1752883832779,-500.0,0.00016437,2]
[373146481,1752883832789,-500.0,0.00016437,2]
[373146482,1752883832799,-500.0,0.00016437,2]
[373146483,1752883832809,-500.0,0.00016437,2]
[373146484,1752883832819,-295.16186664,0.00016437,2]
[373146485,1752883832829,-500.0,0.00016437,2]
[373146486,1752883832850,-500.0,0.00016437,2]
[373146487,1752883832861,-500.0,0.00016437,2]
[373146488,1752883832871,-500.0,0.00016437,2]
[373146489,1752883832881,-296.39010414,0.00016437,2]
[373146490,1752883832891,-500.0,0.00016437,2]
[373146491,1752883832901,-153.35642366,0.00016437,2]
[373146492,1752883832911,-500.0,0.00016437,2]
[373146493,1752883832921,-500.0,0.00016437,2]
[373146494,1752883832931,-500.0,0.00016437,2]
[373146495,1752883832942,-500.0,0.00016437,2]
[373146496,1752883832952,-500.0,0.00016437,2]
[373146497,1752883832961,-500.0,0.00016437,2]
[373146498,1752883832971,-500.0,0.00016437,2]
[373146499,1752883832981,-458.48239816,0.00016437,2]
[373146500,1752883832992,-500.0,0.00016437,2]
[373146501,1752883833003,-500.0,0.00016437,2]
[373146502,1752883833013,-500.0,0.00016437,2]
[373146503,1752883833024,-500.0,0.00016437,2]
[373146504,1752883833034,-350.0,0.00016437,2]
[373146505,1752883833045,-500.0,0.00016437,2]
[373146506,1752883833055,-500.0,0.00016437,2]
[373146507,1752883833065,-500.0,0.00016437,2]
[373146508,1752883833075,-500.0,0.00016437,2]
[373146509,1752883833085,-500.0,0.00016437,2]
[373146510,1752883833095,-538.20043252,0.00016437,2]
[373146511,1752883833105,-317.30307784,0.00016438,2]
[373146512,1752883833115,-460.0,0.00016438,2]
[373146513,1752883833125,-460.0,0.00016438,2]
[373146514,1752883833135,-460.0,0.00016438,2]
[373146515,1752883833146,-460.0,0.00016438,2]
[373146516,1752883833156,-460.0,0.00016438,2]
[373146517,1752883833166,-460.0,0.00016438,2]
[373146518,1752883833176,-460.0,0.00016438,2]
[373146519,1752883833186,-465.7777132,0.00016438,2]
[373146520,1752883833196,-460.0,0.00016438,2]
[373146521,1752883833206,-588.80911844,0.00016438,2]
[373146522,1752883833217,-460.0,0.00016438,2]
[373146523,1752883833226,-460.0,0.00016438,2]
[373146524,1752883833236,-460.0,0.00016438,2]
[373146525,1752883833248,-460.0,0.00016438,2]
[373146526,1752883833258,-460.0,0.00016438,2]
[373146527,1752883833268,-460.0,0.00016438,2]
[373146528,1752883833278,-460.0,0.00016438,2]
[373146529,1752883833290,-460.0,0.00016438,2]
[373146530,1752883833300,-460.0,0.00016438,2]
[373146531,1752883833311,-460.0,0.00016438,2]
[373146532,1752883833320,-460.0,0.00016438,2]
[373146533,1752883833330,-460.0,0.00016438,2]
[373146534,1752883833340,-460.0,0.00016438,2]
[373146535,1752883833350,-460.0,0.00016438,2]
[373146536,1752883833360,-460.0,0.00016438,2]
[373146537,1752883833371,-460.0,0.00016438,2]
[373146538,1752883833381,-460.0,0.00016438,2]
[373146539,1752883833391,-460.0,0.00016438,2]
[373146540,1752883833401,-460.0,0.00016438,2]
[373146541,1752883833411,-460.0,0.00016438,2]
[373146542,1752883833421,-460.0,0.00016438,2]
[373146543,1752883833431,-460.0,0.00016438,2]
[373146544,1752883833441,-460.0,0.00016438,2]
[373146545,1752883833451,-460.0,0.00016438,2]
[373146546,1752883833461,-460.0,0.00016438,2]
[373146547,1752883833471,-460.0,0.00016438,2]
[373146548,1752883833481,-468.00975624,0.00016438,2]
[373146549,1752883833492,-468.61007939,0.00016438,2]
[373146550,1752883833502,-460.0,0.00016438,2]
[373146551,1752883833512,-460.0,0.00016438,2]
[373146552,1752883833522,-460.0,0.00016438,2]
[373146553,1752883833532,-460.0,0.00016438,2]
[373146554,1752883833542,-460.0,0.00016438,2]
[373146555,1752883833552,-460.0,0.00016438,2]
[373146556,1752883833565,-460.0,0.00016438,2]
[373146557,1752883833575,-460.0,0.00016438,2]
[373146558,1752883833586,-460.0,0.00016438,2]
[373146559,1752883833595,-460.0,0.00016438,2]
[373146560,1752883833606,-460.0,0.00016438,2]
[373146561,1752883833616,-460.0,0.00016438,2]
[373146562,1752883833626,-460.0,0.00016438,2]
[373146563,1752883833637,-460.0,0.00016438,2]
[373146564,1752883833647,-460.0,0.00016438,2]
[373146565,1752883833657,-460.0,0.00016438,2]
[373146566,1752883833667,-500.0,0.00016438,2]
[373146567,1752883833676,-460.0,0.00016438,2]
[373146568,1752883833686,-460.0,0.00016438,2]
[373146569,1752883833696,-460.0,0.00016438,2]
[373146570,1752883833706,-460.0,0.00016438,2]
[373146571,1752883833715,-460.0,0.00016438,2]
[373146572,1752883833725,-460.0,0.00016438,2]
[373146573,1752883833735,-460.0,0.00016438,2]
[373146574,1752883833745,-460.0,0.00016438,2]
[373146575,1752883833755,-460.0,0.00016438,2]
[373146576,1752883833765,-460.0,0.00016438,2]
[373146577,1752883833775,-460.0,0.00016438,2]
[373146578,1752883833784,-460.0,0.00016438,2]
[373146579,1752883833794,-460.0,0.00016438,2]
[373146580,1752883833804,-465.59914538,0.00016438,2]
[373146581,1752883833957,-460.0,0.00016438,2]
[373146582,1752883833968,-460.0,0.00016438,2]
[373146583,1752883833978,-460.0,0.00016438,2]
[373146584,1752883833988,-460.0,0.00016438,2]
[373146585,1752883833998,-460.0,0.00016438,2]
[373146586,1752883834008,-460.0,0.00016438,2]
[373146587,1752883834017,-460.0,0.00016438,2]
[373146588,1752883834027,-460.0,0.00016438,2]
[373146589,1752883834039,-460.0,0.00016438,2]
[373146590,1752883834055,-464.98437126,0.00016438,2]
[373146591,1752883834064,-460.0,0.00016438,2]
[373146592,1752883834074,-460.0,0.00016438,2]
[373146593,1752883834083,-460.0,0.00016438,2]
[373146594,1752883834092,-460.0,0.00016438,2]
[373146595,1752883834101,-460.0,0.00016438,2]
[373146596,1752883834110,-208.75664337,0.00016438,2]
[373146597,1752883834119,-460.0,0.00016438,2]
[373146598,1752883834128,-460.0,0.00016438,2]
[373146599,1752883834137,-460.0,0.00016438,2]
[373146600,1752883834146,-592.24375853,0.00016438,2]
[373146601,1752883834155,-460.0,0.00016438,2]
[373146602,1752883834172,-460.0,0.00016438,2]
[373146603,1752883834185,-460.0,0.00016438,2]
[373146604,1752883834194,-460.0,0.00016438,2]
[373146605,1752883834204,-460.0,0.00016438,2]
[373146606,1752883834214,-460.0,0.00016438,2]
[373146607,1752883834224,-460.0,0.00016438,2]
[373146608,1752883834234,-460.0,0.00016438,2]
[373146609,1752883834244,-542.30073855,0.00016438,2]
[373146610,1752883834255,-460.0,0.00016438,2]
[373146611,1752883834266,-460.0,0.00016438,2]
[373146612,1752883834276,-460.0,0.00016438,2]
[373146613,1752883834286,-460.0,0.00016438,2]
[373146614,1752883834297,-460.0,0.00016438,2]
[373146615,1752883834307,-460.0,0.00016438,2]
[373146616,1752883834317,-460.0,0.00016438,2]
[373146617,1752883834327,-460.0,0.00016438,2]
[373146618,1752883834338,-460.0,0.00016438,2]
[373146619,1752883834348,-460.0,0.00016438,2]
[373146620,1752883834358,-460.0,0.00016438,2]
[373146621,1752883834368,-460.0,0.00016438,2]
[373146622,1752883834378,-460.0,0.00016438,2]
[373146623,1752883834388,-460.0,0.00016438,2]
[373146624,1752883834398,-460.0,0.00016438,2]
[373146625,1752883834408,-460.0,0.00016438,2]
[373146626,1752883834418,-234.97951366,0.00016438,2]
[373146627,1752883834428,-460.0,0.00016438,2]
[373146628,1752883834438,-460.0,0.00016438,2]
[373146629,1752883834448,-460.0,0.00016438,2]
[373146630,1752883834458,-460.0,0.00016438,2]
[373146631,1752883834468,-460.0,0.00016438,2]
[373146632,1752883834478,-460.0,0.00016438,2]
[373146633,1752883834490,-460.0,0.00016438,2]
[373146634,1752883834501,-245.95488335,0.00016438,2]
[373146635,1752883834511,-460.0,0.00016438,2]
[373146636,1752883834521,-364.27130797,0.00016438,2]
[373146637,1752883834532,-460.0,0.00016438,2]
[373146638,1752883834543,-460.0,0.00016438,2]
[373146639,1752883834554,-460.0,0.00016438,2]
[373146640,1752883834566,-460.0,0.00016438,2]
[373146641,1752883834578,-460.0,0.00016438,2]
[373146642,1752883834590,-460.0,0.00016438,2]
[373146643,1752883834600,-461.77760219,0.00016438,2]
[373146644,1752883834611,-460.0,0.00016438,2]
[373146645,1752883834621,-460.0,0.00016438,2]
[373146646,1752883834631,-460.0,0.00016438,2]
[373146647,1752883834642,-460.0,0.00016438,2]
[373146648,1752883834652,-460.0,0.00016438,2]
[373146649,1752883834662,-460.0,0.00016438,2]
[373146650,1752883834672,-460.0,0.00016438,2]
[373146651,1752883834682,-460.0,0.00016438,2]
[373146652,1752883834692,-460.0,0.00016438,2]
[373146653,1752883834702,-460.0,0.00016438,2]
[373146654,1752883834713,-460.0,0.00016438,2]
[373146655,1752883834723,-460.0,0.00016438,2]
[373146656,1752883834733,-460.0,0.00016438,2]
[373146657,1752883834744,-460.0,0.00016438,2]
[373146658,1752883834754,-460.0,0.00016438,2]
[373146659,1752883834765,-240.0,0.00016438,2]
[373146660,1752883834776,-460.0,0.00016438,2]
[373146661,1752883834788,-460.0,0.00016438,2]
[373146662,1752883834799,-460.0,0.00016438,2]
[373146663,1752883834810,-460.0,0.00016438,2]
[373146664,1752883834819,-460.0,0.00016438,2]
[373146665,1752883834829,-460.79978135,0.00016438,2]
[373146666,1752883834839,-460.0,0.00016438,2]
[373146667,1752883834849,-460.0,0.00016438,2]
[373146668,1752883834859,-460.0,0.00016438,2]
[373146669,1752883834868,-460.0,0.00016438,2]
[373146670,1752883834878,-587.00634298,0.00016438,2]
[373146671,1752883834888,-460.0,0.00016438,2]
[373146672,1752883834897,-460.0,0.00016438,2]
[373146673,1752883834907,-460.0,0.00016438,2]
[373146674,1752883834916,-460.0,0.00016438,2]
[373146675,1752883834926,-460.0,0.00016438,2]
[373146676,1752883834936,-460.0,0.00016438,2]
[373146677,1752883834946,-460.0,0.00016438,2]
[373146678,1752883834955,-460.0,0.00016438,2]
[373146679,1752883834965,-460.0,0.00016438,2]
[373146680,1752883834975,-460.0,0.00016438,2]
[373146681,1752883834985,-1036.13,0.00016438,2]
[373146682,1752883834995,-460.0,0.00016438,2]
[373146683,1752883835006,-460.0,0.00016438,2]
[373146684,1752883835016,-460.0,0.00016438,2]
[373146685,1752883835026,-460.0,0.00016438,2]
[373146686,1752883835036,-460.0,0.00016438,2]
[373146687,1752883835047,-461.0914089,0.00016438,2]
[373146688,1752883835059,-460.0,0.00016438,2]
[373146689,1752883835070,-460.0,0.00016438,2]
[373146690,1752883835081,-460.0,0.00016438,2]
[373146691,1752883835093,-151.28403145,0.00016438,2]
[373146692,1752883835104,-460.0,0.00016438,2]
[373146693,1752883835114,-460.0,0.00016438,2]
[373146694,1752883835127,-460.0,0.00016438,2]
[373146695,1752883835137,-460.0,0.00016438,2]
[373146696,1752883835149,-462.45463036,0.00016438,2]
[373146697,1752883835158,-460.0,0.00016438,2]
[373146698,1752883835169,-460.0,0.00016438,2]
[373146699,1752883835179,-460.0,0.00016438,2]
[373146700,1752883835189,-2392.55,0.00016438,2]
[373146701,1752883835199,-460.0,0.00016438,2]
[373146702,1752883835209,-2683.71,0.00016438,2]
[373146703,1752883835219,-460.0,0.00016438,2]
[373146704,1752883835232,-460.0,0.00016438,2]
[373146705,1752883835242,-460.0,0.00016438,2]
[373146706,1752883835253,-460.0,0.00016438,2]
[373146707,1752883835263,-460.0,0.00016438,2]